bitfinex/quotes_BTCUSD_20250527
["timestamp","ask_amount","ask_price","bid_price","bid_amount"]
[1748308755752,0.30092849,108360.0,108350.0,0.55227424]
[1748308755976,0.50395466,108360.0,108350.0,1.3058158]
[1748308756206,0.49472668,108360.0,108350.0,1.54070215]
[1748308756430,0.49472668,108360.0,108350.0,1.54993124]
[1748308756861,0.49472668,108360.0,108350.0,0.98711112]
[1748308757095,0.48549844,108360.0,108350.0,1.34688583]
[1748308757540,0.29382816,108360.0,108350.0,1.62201837]
[1748308757761,0.20302668,108360.0,108350.0,0.341]
[1748308757983,0.20302668,108360.0,108350.0,0.002]
[1748308759757,0.20302668,108360.0,108350.0,0.029694]
[1748308759959,0.58427224,108360.0,108350.0,0.029694]
[1748308760115,0.58427224,108360.0,108350.0,0.002]
[1748308760308,0.58436461,108360.0,108350.0,0.002]
[1748308760969,0.65725423,108360.0,108350.0,0.002]
[1748308761200,0.65725423,108360.0,108350.0,0.001]
[1748308761639,0.65825423,108360.0,108350.0,0.001]
[1748308762069,0.20306382,108340.0,108330.0,0.027699]
[1748308762273,0.56944938,108340.0,108330.0,0.027699]
[1748308763396,0.29260938,108340.0,108330.0,0.027699]
[1748308764087,0.29260938,108340.0,108330.0,0.028699]
[1748308764290,0.20306382,108340.0,108330.0,0.028699]
[1748308764671,0.20306382,108340.0,108330.0,0.04669785]
[1748308764937,0.20306382,108340.0,108330.0,0.40647256]
[1748308765358,0.49476382,108340.0,108330.0,0.40647256]
[1748308765998,0.49476382,108340.0,108330.0,0.029699]
[1748308766410,0.20306382,108340.0,108330.0,0.029699]
[1748308766832,0.20306382,108340.0,108330.0,0.38947371]
[1748308767692,0.20306382,108340.0,108330.0,0.54499271]
[1748308767892,0.20306382,108340.0,108330.0,1.09730632]
[1748308768105,0.09080148,108350.0,108340.0,0.54306433]
[1748308768318,0.27538846,108350.0,108340.0,1.69398452]
[1748308768549,0.27538846,108350.0,108340.0,1.40137471]
[1748308768778,0.19383405,108340.0,108330.0,0.002]
[1748308769001,0.19383405,108340.0,108240.0,0.03620516]
[1748308769002,0.20315758,108290.0,108240.0,0.03620516]
[1748308769262,0.20315758,108290.0,108280.0,0.03620516]
[1748308769263,0.25315758,108290.0,108280.0,0.03620516]
[1748308769474,0.50453843,108290.0,108280.0,0.03620516]
[1748308769695,0.80453843,108290.0,108280.0,0.03620516]
[1748308769905,0.57954314,108290.0,108280.0,0.03620516]
[1748308770125,0.56954314,108290.0,108280.0,0.03620516]
[1748308770334,0.57154314,108290.0,108280.0,0.03620516]
[1748308770551,0.30867689,108290.0,108280.0,0.03620516]
[1748308770823,0.20323264,108250.0,108240.0,0.51448562]
[1748308771043,0.2927782,108250.0,108240.0,0.027716]
[1748308771256,0.2927782,108250.0,108240.0,0.07288962]
[1748308771471,0.2927782,108250.0,108240.0,0.10061262]
[1748308771685,0.2927782,108250.0,108240.0,0.12636867]
[1748308772098,0.2927782,108250.0,108240.0,0.12686748]
[1748308772275,0.2927782,108250.0,108240.0,0.51614448]
[1748308772527,0.2927782,108250.0,108240.0,0.51814352]
[1748308772738,0.2927782,108250.0,108240.0,0.51514352]
[1748308772955,0.2927782,108250.0,108240.0,0.0110832]
[1748308773172,0.2927782,108250.0,108240.0,0.0130832]
[1748308774684,0.2927782,108250.0,108240.0,0.00449881]
[1748308776923,0.2032702,108230.0,108220.0,0.0030646]
[1748308777136,0.29281576,108230.0,108220.0,0.0030646]
[1748308778440,0.58451576,108230.0,108220.0,0.0030646]
[1748308778668,0.29781576,108230.0,108220.0,0.0030646]
[1748308779078,0.30181576,108230.0,108220.0,0.0030646]
[1748308780342,0.31544547,108230.0,108220.0,0.0030646]
[1748308780553,0.2122702,108230.0,108220.0,0.0030646]
[1748308780781,0.29257661,108230.0,108220.0,0.0030646]
[1748308781202,0.29257661,108230.0,108220.0,0.01158589]
[1748308781420,0.28857661,108230.0,108220.0,0.01158589]
[1748308781858,0.28357661,108230.0,108220.0,0.01158589]
[1748308782062,0.28457661,108230.0,108220.0,0.01158589]
[1748308782288,0.28657661,108230.0,108220.0,0.01158589]
[1748308782495,0.28657661,108230.0,108220.0,0.0030646]
[1748308782707,0.28657661,108230.0,108180.0,0.14731258]
[1748308782708,0.01924282,108190.0,108180.0,0.14731258]
[1748308782940,0.20342056,108150.0,108140.0,0.00583173]
[1748308783171,0.21796141,108150.0,108140.0,0.0143528]
[1748308783411,0.20422846,108120.0,108110.0,0.02936555]
[1748308783650,0.19422846,108120.0,108110.0,0.02936555]
[1748308783881,0.19422846,108120.0,108110.0,0.01436555]
[1748308784096,0.19472727,108120.0,108110.0,0.01436555]
[1748308784354,0.19472727,108120.0,108110.0,0.54151451]
[1748308784598,0.19572727,108120.0,108110.0,0.52052962]
[1748308785112,0.19472727,108120.0,108110.0,0.87642962]
[1748308785370,0.19472727,108120.0,108110.0,0.89242962]
[1748308785597,0.28552875,108120.0,108110.0,1.27962462]
[1748308785810,0.28852875,108120.0,108110.0,1.36914613]
[1748308786042,0.20697599,108120.0,108110.0,1.29414613]
[1748308786269,0.19772735,108120.0,108110.0,1.45658131]
[1748308786490,0.29052883,108120.0,108110.0,1.45658131]
[1748308786713,0.29977747,108120.0,108110.0,1.45658131]
[1748308786926,0.20897599,108120.0,108110.0,1.45658131]
[1748308787140,0.29977747,108120.0,108110.0,1.36703575]
[1748308787370,0.29677747,108120.0,108110.0,1.10107351]
[1748308787576,0.20597599,108120.0,108110.0,1.91557907]
[1748308787992,0.02099583,108120.0,108110.0,2.12832456]
[1748308788206,0.29477739,108120.0,108110.0,1.91757907]
[1748308788665,0.29477739,108120.0,108110.0,1.91857907]
[1748308789082,0.20397591,108120.0,108110.0,1.91757907]
[1748308789289,0.29477739,108120.0,108110.0,1.91757907]
[1748308789598,0.29477739,108120.0,108110.0,1.91957907]
[1748308789828,0.00049881,108120.0,108110.0,2.14686515]
[1748308790050,0.00974702,108120.0,108110.0,2.1638243]
[1748308790280,0.00049881,108120.0,108110.0,2.1638243]
[1748308790456,0.00974702,108120.0,108110.0,2.1638243]
[1748308790732,0.01899548,108120.0,108110.0,2.1638243]
[1748308790945,0.00974702,108120.0,108110.0,2.1638243]
[1748308791403,0.00049881,108120.0,108110.0,2.1638243]
[1748308791640,0.22247249,108120.0,108110.0,2.23714978]
[1748308791855,0.04674182,108120.0,108110.0,2.16386465]
[1748308792075,0.03749284,108120.0,108110.0,2.56063459]
[1748308792297,0.00049881,108120.0,108110.0,2.56063459]
[1748308792519,0.00974719,108120.0,108110.0,2.56063459]
[1748308792742,0.00049881,108120.0,108110.0,2.20185997]
[1748308792957,0.00049881,108120.0,108110.0,2.57088391]
[1748308793135,0.01899531,108120.0,108110.0,2.57088391]
[1748308793342,0.00049881,108120.0,108110.0,2.57088391]
[1748308793777,0.18492488,108160.0,108150.0,0.3563]
[1748308793995,0.18492488,108160.0,108150.0,2.36958197]
[1748308794212,0.18492488,108160.0,108150.0,2.07639497]
[1748308794425,0.18493659,108180.0,108160.0,0.0154]
[1748308794638,0.18493659,108180.0,108160.0,0.622117]
[1748308795070,0.18492031,108170.0,108160.0,0.62226669]
[1748308795286,0.18492031,108170.0,108160.0,0.7117882]
[1748308795497,0.18492031,108170.0,108160.0,0.72029545]
[1748308795720,0.18592031,108170.0,108160.0,0.43817845]
[1748308795972,0.18592031,108170.0,108160.0,0.51755694]
[1748308796155,0.18692031,108170.0,108160.0,0.62589694]
[1748308796359,0.18692031,108170.0,108160.0,0.76259694]
[1748308797380,0.18692031,108170.0,108160.0,0.34865694]
[1748308797609,0.27646587,108170.0,108160.0,0.79649694]
[1748308797827,0.27646587,108170.0,108160.0,0.45649694]
[1748308798063,0.27646587,108170.0,108160.0,0.00865694]
[1748308798291,0.36445549,108170.0,108160.0,0.00865694]
[1748308798527,0.38035549,108170.0,108160.0,0.00865694]
[1748308799660,0.30746587,108170.0,108160.0,0.00865694]
[1748308801026,0.20343938,108140.0,108130.0,0.475591]
[1748308801475,0.20243938,108140.0,108130.0,0.475591]
[1748308801911,0.20243938,108140.0,108130.0,0.49272743]
[1748308802371,0.20243938,108140.0,108130.0,0.49572743]
[1748308802610,0.1175426,108140.0,108130.0,1.07974663]
[1748308802815,0.21268596,108140.0,108130.0,2.0916338]
[1748308803023,0.17336813,108160.0,108140.0,0.3552]
[1748308803246,0.1849424,108150.0,108140.0,0.64961643]
[1748308803735,0.1839424,108150.0,108140.0,0.64961643]
[1748308803972,0.19417407,108150.0,108140.0,0.77048294]
[1748308804200,0.20342091,108150.0,108140.0,0.58853994]
[1748308804417,0.20342091,108150.0,108140.0,0.97149097]
[1748308804649,0.01849257,108150.0,108140.0,1.13707314]
[1748308804871,0.02773761,108150.0,108140.0,1.13507314]
[1748308805100,0.21266655,108150.0,108140.0,1.1001367]
[1748308805358,0.20342074,108150.0,108140.0,0.9794835]
[1748308805585,0.20342074,108150.0,108140.0,1.33925821]
[1748308805813,0.20342074,108150.0,108140.0,0.9794835]
[1748308806242,0.20342074,108150.0,108140.0,1.33925821]
[1748308807123,0.20342074,108150.0,108140.0,1.65543821]
[1748308807337,0.20342074,108150.0,108140.0,1.2956635]
[1748308807556,0.20342074,108150.0,108140.0,0.46801643]
[1748308807811,0.20342074,108150.0,108140.0,0.74529643]
[1748308808065,0.20342074,108150.0,108140.0,0.02013643]
[1748308808066,0.2929663,108150.0,108140.0,0.02013643]
[1748308809891,0.2929663,108150.0,108140.0,0.01813643]
[1748308810375,0.2939663,108150.0,108140.0,0.01813643]
[1748308810638,0.2939663,108150.0,108140.0,0.01713643]
[1748308810880,0.19422846,108120.0,108110.0,0.001]
[1748308811103,1.24852449,108120.0,108110.0,0.001]
[1748308811324,1.27654527,108120.0,108110.0,0.001]
[1748308811585,0.19424642,108110.0,108100.0,0.05082785]
[1748308811829,0.29999198,108110.0,108100.0,0.05082785]
[1748308812052,0.29999198,108110.0,108100.0,0.01123255]
[1748308812053,0.59833283,108110.0,108100.0,0.01123255]
[1748308812280,0.21353348,108090.0,108080.0,0.0216064]
[1748308812499,0.57039904,108090.0,108080.0,0.0216064]
[1748308813360,0.57039904,108090.0,108080.0,0.03020645]
[1748308814254,0.57439904,108090.0,108080.0,0.03020645]
[1748308814467,0.57839904,108090.0,108080.0,0.03020645]
[1748308814683,0.57843904,108090.0,108080.0,0.03020645]
[1748308814897,0.30107904,108090.0,108080.0,0.03020645]
[1748308815350,0.34607904,108090.0,108080.0,0.03020645]
[1748308816015,0.29607904,108090.0,108080.0,0.03020645]
[1748308816435,0.29607904,108090.0,108080.0,0.02520645]
[1748308817364,0.57347904,108090.0,108080.0,0.02520645]
[1748308818044,0.19430034,108080.0,108070.0,0.01087225]
[1748308818280,0.2838459,108080.0,108070.0,0.01087225]
[1748308819816,0.2858459,108080.0,108070.0,0.01087225]
[1748308820500,0.2878459,108080.0,108070.0,0.01087225]
[1748308821947,0.36073552,108080.0,108070.0,0.01087225]
[1748308822349,0.2878459,108080.0,108070.0,0.01087225]
[1748308822573,0.01851105,108040.0,108030.0,0.34455815]
[1748308822814,0.48106767,108040.0,108030.0,0.34455815]
[1748308823249,0.57061323,108040.0,108030.0,0.34455815]
[1748308823447,1.38173323,108040.0,108030.0,0.34455815]
[1748308823666,0.59317323,108040.0,108030.0,0.31955815]
[1748308823879,0.58438612,108040.0,108030.0,0.31955815]
[1748308824095,0.31490612,108040.0,108030.0,0.31955815]
[1748308824351,0.57880265,108040.0,108030.0,0.31955815]
[1748308824569,0.19439026,108030.0,108020.0,0.00089518]
[1748308824793,1.13538544,108030.0,108020.0,0.00089518]
[1748308825234,1.13538544,108030.0,108000.0,0.65075901]
[1748308825235,0.20368423,108010.0,108000.0,0.65075901]
[1748308825456,0.20368423,108010.0,107980.0,0.00591633]
[1748308825457,0.20372195,107990.0,107980.0,0.00591633]
[1748308825696,0.58074751,107990.0,107980.0,0.00591633]
[1748308826359,0.29326751,107990.0,107980.0,0.00591633]
[1748308826569,0.29326751,107990.0,107980.0,0.03751633]
[1748308826781,0.29341682,107990.0,107980.0,0.03751633]
[1748308827009,0.54449829,107970.0,107960.0,0.01240138]
[1748308827217,0.54449829,107970.0,107910.0,0.32927357]
[1748308827218,0.2038541,107920.0,107910.0,0.32927357]
[1748308827417,0.2038541,107920.0,107910.0,1.063265]
[1748308827628,0.2038541,107920.0,107910.0,0.73118971]
[1748308827841,0.19458815,107920.0,107910.0,1.20008022]
[1748308828097,0.2038541,107920.0,107910.0,0.69888022]
[1748308828267,0.2038541,107920.0,107910.0,0.249584]
[1748308828268,0.29339966,107920.0,107910.0,0.249584]
[1748308828482,0.00926543,107920.0,107910.0,1.67296505]
[1748308828702,0.00926466,107930.0,107920.0,0.24481978]
[1748308828907,0.18528508,107950.0,107940.0,0.0317]
[1748308828908,0.20379778,107950.0,107940.0,0.0317]
[1748308829118,0.18523663,107970.0,107960.0,0.0317]
[1748308829376,0.18538588,107970.0,107960.0,0.89283471]
[1748308829559,0.27493144,107970.0,107960.0,0.98235622]
[1748308829801,0.27493144,107970.0,107960.0,0.0317]
[1748308830239,0.08969481,107970.0,107960.0,0.39147471]
[1748308830459,0.08969481,107970.0,107960.0,2.45575581]
[1748308830460,0.01041056,107970.0,107960.0,2.45575581]
[1748308830678,0.01041056,107970.0,107960.0,2.81553052]
[1748308830679,0.00114925,107970.0,107960.0,2.81553052]
[1748308830893,0.00925951,107990.0,107980.0,0.55300136]
[1748308831117,0.21298146,107990.0,107980.0,0.37059881]
[1748308831327,0.01851808,108000.0,107990.0,0.22456227]
[1748308831538,0.01851808,108000.0,107990.0,1.40062021]
[1748308831539,0.00925848,108000.0,107990.0,1.40062021]
[1748308831760,0.25814973,108020.0,108000.0,0.23379914]
[1748308831761,0.01851586,108010.0,108000.0,0.23379914]
[1748308832001,0.21294297,108010.0,108000.0,1.27893302]
[1748308832211,0.0185162,108010.0,108000.0,0.99342543]
[1748308832418,0.20368423,108010.0,108000.0,1.34394114]
[1748308832633,0.20368423,108010.0,108000.0,1.08449271]
[1748308832838,0.20368423,108010.0,108000.0,1.28819614]
[1748308833060,0.18526011,108020.0,108010.0,0.18516803]
[1748308833301,0.25910601,108030.0,108020.0,0.0317]
[1748308833523,0.27576195,108030.0,108020.0,0.39147471]
[1748308833750,0.27576195,108030.0,108020.0,0.10484747]
[1748308833967,0.27576195,108030.0,108020.0,0.39147471]
[1748308834386,0.27576195,108030.0,108020.0,0.72377571]
[1748308834645,0.20091211,108030.0,108020.0,0.0317]
[1748308834855,0.20091211,108030.0,108020.0,0.39547471]
[1748308836102,0.20091211,108030.0,108020.0,0.89683471]
[1748308837284,0.20091211,108030.0,108020.0,0.53706]
[1748308837522,0.18528391,108030.0,108020.0,0.74000367]
[1748308837743,0.18528391,108030.0,108020.0,1.62592058]
[1748308837963,0.18528391,108030.0,108020.0,2.15107147]
[1748308838183,0.18528391,108030.0,108020.0,2.43796892]
[1748308838399,0.18528391,108030.0,108020.0,2.12099755]
[1748308838625,0.18528391,108030.0,108020.0,1.99584555]
[1748308838837,0.00940624,108030.0,108020.0,2.18099644]
[1748308839055,0.00940624,108030.0,108020.0,1.92960655]
[1748308839056,0.21305344,108030.0,108020.0,1.92960655]
[1748308839276,0.2037971,108030.0,108020.0,0.94561555]
[1748308839486,0.2037971,108030.0,108020.0,1.65064126]
[1748308839699,0.2037971,108030.0,108020.0,1.65064135]
[1748308839873,0.01866335,108030.0,108020.0,1.65789855]
[1748308840091,0.01866335,108030.0,108020.0,1.65064135]
[1748308840315,0.2037971,108030.0,108020.0,1.65064126]
[1748308840527,0.2037971,108030.0,108020.0,0.60761555]
[1748308840729,0.28408615,108030.0,108020.0,0.04623533]
[1748308840936,0.28408615,108030.0,108020.0,0.40601004]
[1748308841380,0.00940659,108030.0,108020.0,1.0586987]
[1748308841598,0.20379685,108030.0,108020.0,1.21048755]
[1748308841816,0.20379685,108030.0,108020.0,1.11426155]
[1748308842218,0.20379685,108030.0,108020.0,0.99685155]
[1748308842662,0.20379685,108030.0,108020.0,0.20090733]
[1748308842844,0.20379685,108030.0,108020.0,0.56068204]
[1748308843074,0.20379685,108030.0,108020.0,0.90068204]
[1748308843254,0.20379685,108030.0,108020.0,0.87234104]
[1748308843485,0.20379685,108030.0,108020.0,1.72351704]
[1748308843693,0.20379685,108030.0,108020.0,1.81303855]
[1748308843910,0.20379685,108030.0,108020.0,1.99818944]
[1748308844024,0.00015016,108030.0,108020.0,2.11550659]
[1748308844230,0.00015016,108030.0,108020.0,2.09381649]
[1748308844231,0.01866241,108030.0,108020.0,2.09381649]
[1748308844651,0.02791884,108030.0,108020.0,2.12158949]
[1748308844920,0.02791884,108030.0,108020.0,2.11305416]
[1748308845166,0.03717517,108030.0,108020.0,2.11305416]
[1748308845386,0.22230892,108030.0,108020.0,2.10379722]
[1748308845595,0.23156552,108030.0,108020.0,2.12231119]
[1748308845748,0.03717517,108030.0,108020.0,2.12231119]
[1748308846357,0.02791866,108030.0,108020.0,2.12231119]
[1748308846627,0.03717517,108030.0,108020.0,1.83545425]
[1748308846836,0.20379702,108030.0,108020.0,1.53298612]
[1748308847043,0.20379702,108030.0,108020.0,1.78281312]
[1748308847300,0.20379702,108030.0,108020.0,1.21706461]
[1748308847493,0.20379702,108030.0,108020.0,1.23246461]
[1748308847673,0.20379702,108030.0,108020.0,1.2410555]
[1748308848107,0.20379702,108030.0,108020.0,1.5186555]
[1748308848313,0.20379702,108030.0,108020.0,1.60817701]
[1748308848972,0.20379702,108030.0,108020.0,1.92592501]
[1748308849152,0.18511976,108040.0,108030.0,0.0314]
[1748308849367,0.18511976,108040.0,108030.0,0.03189881]
[1748308849801,0.34755494,108040.0,108030.0,0.0090897]
[1748308850012,0.63722375,108030.0,108020.0,0.003]
[1748308850232,0.20368423,108010.0,108000.0,0.027776]
[1748308850448,0.19449786,107970.0,107960.0,0.89069471]
[1748308850666,0.20375497,107980.0,107970.0,0.3716]
[1748308850900,0.21301534,107980.0,107970.0,1.21957571]
[1748308851108,0.21301534,107980.0,107970.0,0.519801]
[1748308851109,0.21301629,107980.0,107970.0,0.519801]
[1748308851321,0.19448996,107990.0,107980.0,0.3703]
[1748308851526,0.21300992,107990.0,107980.0,1.06810971]
[1748308851737,0.19448195,108000.0,107980.0,1.33109626]
[1748308851946,0.0282784,107990.0,107980.0,0.64254709]
[1748308852181,0.2227405,107990.0,107980.0,2.71828143]
[1748308852395,0.00049995,107990.0,107980.0,2.76820243]
[1748308852826,0.02777613,108000.0,107990.0,0.23392213]
[1748308853028,0.23147956,108000.0,107990.0,2.84759301]
[1748308853229,0.22222023,108000.0,107990.0,3.03142499]
[1748308853381,0.02777605,108000.0,107990.0,3.29089495]
[1748308853779,0.00925857,108000.0,107990.0,3.29089495]
[1748308853986,0.00925857,108000.0,107990.0,0.00015016]
[1748308853987,0.64373827,108000.0,107990.0,0.00015016]
[1748308854203,0.64373827,108000.0,107990.0,0.00215016]
[1748308854410,0.65373827,108000.0,107990.0,0.00215016]
[1748308854616,0.65373827,108000.0,107990.0,0.00415016]
[1748308854824,0.65373827,108000.0,107910.0,0.03160834]
[1748308854825,0.2038541,107920.0,107910.0,0.03160834]
[1748308855041,0.2038541,107920.0,107910.0,0.03210829]
[1748308855042,0.29339966,107920.0,107910.0,0.03210829]
[1748308855253,0.35702333,107920.0,107910.0,0.03110829]
[1748308855466,0.36628928,107920.0,107910.0,0.03110829]
[1748308856093,0.36628928,107920.0,107910.0,0.00181656]
[1748308856727,0.29339966,107920.0,107910.0,0.00181656]
[1748308857131,0.29539966,107920.0,107910.0,0.00181656]
[1748308857504,0.1100772,107920.0,107910.0,0.03251656]
[1748308857713,0.56881397,107920.0,107910.0,0.00181656]
[1748308857925,0.29113397,107920.0,107910.0,0.03341656]
[1748308858129,0.59113397,107920.0,107910.0,0.00181656]
[1748308858333,0.3286956,107920.0,107910.0,0.00181656]
[1748308858544,0.19693963,107910.0,107890.0,0.00095863]
[1748308858751,0.1946786,107870.0,107860.0,0.53198947]
[1748308859606,0.28422416,107870.0,107860.0,1.74865147]
[1748308859826,0.20394876,107870.0,107860.0,1.58544747]
[1748308860285,0.20444818,107870.0,107860.0,1.03587847]
[1748308860508,0.20444818,107870.0,107860.0,1.56803847]
[1748308860729,0.20444818,107870.0,107860.0,1.08500798]
[1748308860938,0.20444818,107870.0,107860.0,1.61716798]
[1748308861159,0.20444818,107870.0,107860.0,0.89278947]
[1748308861384,0.20444818,107870.0,107860.0,1.99931947]
[1748308861627,0.20434077,107870.0,107860.0,1.99931947]
[1748308861861,0.20434077,107870.0,107860.0,1.94589447]
[1748308862072,0.20434077,107870.0,107860.0,2.04397155]
[1748308862311,0.20434077,107870.0,107860.0,2.38848326]
[1748308862535,0.00039219,107870.0,107860.0,2.6017216]
[1748308862746,0.00039219,107870.0,107860.0,2.24194689]
[1748308862955,0.00039219,107870.0,107860.0,2.69126716]
[1748308863177,0.00039219,107870.0,107860.0,1.79933245]
[1748308863397,0.00039219,107870.0,107860.0,2.62453245]
[1748308863620,0.20434077,107870.0,107860.0,0.56164504]
[1748308863837,0.29388633,107870.0,107860.0,0.52974504]
[1748308864492,0.29388633,107870.0,107860.0,0.95381752]
[1748308864722,0.29388633,107870.0,107860.0,0.90074504]
[1748308864931,0.20434077,107870.0,107860.0,0.90074504]
[1748308865145,0.20434077,107870.0,107860.0,1.44826504]
[1748308865279,0.20434077,107870.0,107860.0,0.90074504]
[1748308865506,0.20434077,107870.0,107860.0,1.44826504]
[1748308865709,0.20434077,107870.0,107860.0,1.53778655]
[1748308866176,0.20434077,107870.0,107860.0,1.81566655]
[1748308866449,0.00039219,107870.0,107860.0,2.22200489]
[1748308866688,0.00039219,107870.0,107860.0,2.5817796]
[1748308866930,0.00039219,107870.0,107860.0,2.67132516]
[1748308867345,0.00926809,107890.0,107880.0,0.20392985]
[1748308867547,0.00926809,107890.0,107880.0,1.37397054]
[1748308867548,0.01853644,107890.0,107880.0,1.37397054]
[1748308867763,0.21317904,107890.0,107880.0,0.66796765]
[1748308868004,0.20391095,107890.0,107880.0,0.21659765]
[1748308868209,0.18540466,107900.0,107890.0,0.3722]
[1748308868422,0.21320774,107900.0,107890.0,1.36155212]
[1748308868787,0.21315946,107900.0,107890.0,1.35228351]
[1748308869003,0.22242713,107900.0,107890.0,1.10217351]
[1748308869215,0.00926741,107900.0,107890.0,1.92761351]
[1748308869424,0.19460626,107910.0,107900.0,0.04116784]
[1748308869638,0.22240642,107910.0,107900.0,1.34840453]
[1748308869889,0.22238555,107920.0,107910.0,0.58504013]
[1748308870105,0.20389188,107900.0,107890.0,0.03832221]
[1748308870328,0.20389188,107900.0,107880.0,0.00014925]
[1748308870329,0.19464251,107890.0,107880.0,0.00014925]
[1748308870759,0.35707769,107890.0,107880.0,0.00014925]
[1748308870977,0.20394858,107870.0,107860.0,0.51618947]
[1748308871189,0.36638376,107870.0,107860.0,0.51618947]
[1748308871607,0.37638376,107870.0,107860.0,0.51618947]
[1748308871841,0.36638376,107870.0,107860.0,0.51618947]
[1748308872485,0.29649414,107870.0,107860.0,0.51618947]
[1748308873118,0.29749414,107870.0,107860.0,0.51618947]
[1748308874861,0.95834376,107870.0,107860.0,0.46700327]
[1748308875077,0.98038376,107870.0,107860.0,0.46120327]
[1748308875293,0.95834376,107870.0,107860.0,0.46120327]
[1748308876148,1.25534376,107870.0,107860.0,0.46120327]
[1748308876571,1.25834376,107870.0,107860.0,0.46120327]
[1748308876775,1.26034376,107870.0,107860.0,0.46120327]
[1748308877905,0.29949414,107870.0,107860.0,0.46120327]
[1748308878131,0.29949414,107870.0,107860.0,0.85147798]
[1748308878363,0.29949414,107870.0,107860.0,0.4332735]
[1748308878605,1.22749414,107870.0,107860.0,0.0333735]
[1748308878866,0.51402423,107830.0,107820.0,0.01493391]
[1748308879093,0.60356979,107830.0,107820.0,0.01493391]
[1748308879311,0.29356979,107830.0,107820.0,0.01493391]
[1748308879548,0.57156979,107830.0,107820.0,0.01493391]
[1748308879772,0.29356979,107830.0,107820.0,0.01493391]
[1748308880013,0.57156979,107830.0,107820.0,0.01493391]
[1748308880460,0.5717194,107830.0,107820.0,0.01493391]
[1748308880674,0.2937194,107830.0,107820.0,0.04533391]
[1748308880906,0.2937194,107830.0,107820.0,0.32337391]
[1748308881145,0.2947194,107830.0,107820.0,0.32337391]
[1748308881328,0.2937194,107830.0,107820.0,0.68414862]
[1748308881556,0.2937194,107830.0,107820.0,0.78222816]
[1748308881780,0.2937194,107830.0,107820.0,0.41466665]
[1748308882002,0.10824227,107830.0,107820.0,1.03270665]
[1748308882217,0.00942277,107830.0,107820.0,2.23148899]
[1748308882441,0.18547025,107860.0,107820.0,2.33228461]
[1748308882668,0.27689494,107840.0,107820.0,0.02699136]
[1748308882893,0.19475081,107830.0,107820.0,0.02699136]
[1748308883580,0.19475081,107830.0,107820.0,0.62143136]
[1748308883814,0.28429637,107830.0,107820.0,0.61287333]
[1748308884019,0.28429637,107830.0,107820.0,0.70239484]
[1748308884231,0.2040244,107830.0,107820.0,1.15260484]
[1748308884441,0.2040244,107830.0,107820.0,1.51237955]
[1748308884681,0.2040244,107830.0,107820.0,1.50437955]
[1748308884916,0.2040244,107830.0,107820.0,1.61060155]
[1748308885644,0.20400567,107840.0,107830.0,0.372]
[1748308885871,0.19471453,107850.0,107840.0,0.0313]
[1748308886128,0.19471453,107850.0,107840.0,1.49008647]
[1748308886129,0.0092717,107850.0,107840.0,1.49008647]
[1748308886352,0.20398588,107850.0,107840.0,1.48081365]
[1748308886683,0.20398631,107850.0,107840.0,0.696365]
[1748308886905,0.2132587,107850.0,107840.0,1.08396171]
[1748308887338,0.2132587,107850.0,107840.0,0.0331]
[1748308887339,0.36642201,107850.0,107840.0,0.0331]
[1748308887559,0.19473276,107840.0,107830.0,0.59374]
[1748308887771,0.28427832,107840.0,107830.0,0.59374]
[1748308887990,0.28427832,107840.0,107830.0,0.87182]
[1748308889465,0.28427832,107840.0,107830.0,1.23159471]
[1748308889674,0.28427832,107840.0,107830.0,1.28779131]
[1748308889876,0.28427832,107840.0,107830.0,1.23159471]
[1748308890086,0.28427832,107840.0,107830.0,1.23659471]
[1748308891891,0.28427832,107840.0,107830.0,0.87682]
[1748308893005,0.28427832,107840.0,107830.0,1.23659471]
[1748308893217,0.19473276,107840.0,107830.0,1.57659471]
[1748308893392,0.19473276,107840.0,107830.0,1.66611622]
[1748308894149,0.19473276,107840.0,107830.0,1.38803622]
[1748308894369,0.19473276,107840.0,107830.0,1.30634151]
[1748308894577,0.19473276,107840.0,107830.0,1.66611622]
[1748308894791,0.19473276,107840.0,107830.0,1.21682]
[1748308894994,0.19473276,107840.0,107830.0,0.3763]
[1748308895249,0.19473276,107840.0,107830.0,1.56199471]
[1748308895452,0.19473276,107840.0,107830.0,1.57058711]
[1748308895676,0.35716794,107840.0,107830.0,0.0448924]
[1748308895879,0.35716794,107840.0,107830.0,0.5927324]
[1748308896566,0.20400532,107840.0,107830.0,1.84008319]
[1748308896779,0.02781837,107840.0,107830.0,1.84935688]
[1748308897021,0.18540836,107870.0,107860.0,0.34]
[1748308897237,0.1854314,107890.0,107880.0,0.34]
[1748308897457,0.27497696,107890.0,107880.0,1.00965471]
[1748308897675,0.27497696,107890.0,107880.0,0.30988]
[1748308897918,0.27497696,107890.0,107880.0,0.059616]
[1748308898131,0.27512712,107890.0,107880.0,0.0318]
[1748308898343,0.27512712,107890.0,107880.0,0.644597]
[1748308898550,0.27512712,107890.0,107880.0,1.00437171]
[1748308899011,0.27512712,107890.0,107880.0,0.96719171]
[1748308899416,0.18558156,107890.0,107880.0,0.96719171]
[1748308900061,0.18758156,107890.0,107880.0,0.96719171]
[1748308900271,0.18758156,107890.0,107880.0,0.97646109]
[1748308900501,0.18758156,107890.0,107880.0,0.96719171]
[1748308900715,0.19158156,107890.0,107880.0,1.30719171]
[1748308900894,0.19158156,107890.0,107880.0,1.225457]
[1748308901553,0.19158156,107890.0,107880.0,0.92565991]
[1748308901767,0.19158156,107890.0,107880.0,1.20369991]
[1748308901973,0.28112712,107890.0,107880.0,0.03789991]
[1748308902185,0.28112712,107890.0,107880.0,0.86369991]
[1748308902430,0.19158156,107890.0,107880.0,0.91938488]
[1748308902652,0.00615016,107890.0,107880.0,1.54504926]
[1748308902874,0.01541808,107890.0,107880.0,2.02018221]
[1748308903098,0.00615016,107890.0,107880.0,2.10972777]
[1748308903320,0.00615016,107890.0,107880.0,2.12426862]
[1748308903544,0.1854183,107930.0,107910.0,0.21313953]
[1748308903729,0.21325055,107930.0,107920.0,2.03922929]
[1748308903974,0.21325055,107930.0,107920.0,1.63016071]
[1748308903975,0.19472063,107930.0,107920.0,1.63016071]
[1748308904239,0.19472063,107930.0,107920.0,1.52557471]
[1748308904452,0.22657042,107930.0,107920.0,1.52557471]
[1748308904667,0.22657042,107930.0,107920.0,1.55757471]
[1748308904888,0.22757042,107930.0,107920.0,0.82129622]
[1748308905105,0.22757042,107930.0,107920.0,1.64697622]
[1748308905323,0.22757042,107930.0,107920.0,1.75542822]
[1748308905584,0.22757042,107930.0,107920.0,1.64797622]
[1748308905823,0.22757042,107930.0,107920.0,1.75642822]
[1748308906088,0.22757042,107930.0,107920.0,1.64797622]
[1748308906332,0.23683542,107930.0,107920.0,1.90949822]
[1748308906551,0.03299987,107930.0,107920.0,2.11788386]
[1748308906756,0.04226453,107930.0,107920.0,2.11788386]
[1748308906987,0.03299987,107930.0,107920.0,2.22197027]
[1748308907431,0.0092632,107950.0,107920.0,2.22197027]
[1748308907432,0.06979797,107960.0,107950.0,0.58496046]
[1748308907646,0.25505176,107960.0,107950.0,2.31781917]
[1748308907836,0.25505176,107960.0,107950.0,2.13262392]